Cogmind - Beta 14 @@@ ROGUE MODE // 2024.10.29 @ 09:22:01 Player: XDRM Result: Core destroyed Performance ------------- Evolutions (4) 2000 Regions Visited (6) 1200 Robots Destroyed (43) 215 Value Destroyed (1066) 1066 Prototype IDs (11) 220 Alien Tech Used (0) 0 Bonus (0) 0 TOTAL SCORE: 4701 Bonus ------- None Cogmind --------- Core Integrity 0/850 Matter 58/300 Energy 100/100 System Corruption 14% Temperature Cool (18) Movement Core (200) Ox3 Location -6/Factory Parts ------- > --- POWER (1) -------- (None) > --- PROPULSION (4) --- Medium Armored Exoskeleton > --- UTILITY (6) ------ Small Storage Unit Long-range Terrain Scanner Weapon Cycler Graphene Brace Thermal Shield > --- WEAPON (4) ------- (None) > --- INVENTORY (8) ---- Medium Matter Pod (0) Peak State ------------ > --- POWER ------------ Improved Deuterium Engine > --- PROPULSION ------- Medium Armored Exoskeleton > --- UTILITY ---------- Small Storage Unit Long-range Terrain Scanner Weapon Cycler Graphene Brace Thermal Shield > --- WEAPON ----------- Arc Projector Flak Cannon > --- INVENTORY -------- Medium Matter Pod [Rating: 53] Favorites ----------- Power Light Ion Engine Engine Light Ion Engine Power Core Nuclear Core Propulsion Cargo Legs Leg Cargo Legs Wheel Compact Wheel Utility Makeshift Hacking Suite Device Terrain Scanner Storage Small Storage Unit Processor Transport Network Coupler Hackware Makeshift Hacking Suite Protection Scrap Shield Weapon Subdweller Machine Gun Energy Gun Arc Projector Energy Cannon Subdweller Beam Cannon Ballistic Gun Subdweller Machine Gun Ballistic Cannon Flak Cannon Launcher Improved Grenade Launcher Special Weapon Mining Laser Slashing Weapon Makeshift Axe Build | -11 -10 -10 -8 -6 -6 -6 ------- Run | Yrd Mat Sub Rec Fac Was Fac Slots Evolved 8 | . . . . 8 . . Power . | . . . . . . . Propulsion 2 | . . . . 2 . . Utility 4 | . . . . 4 . . Weapon 2 | . . . . 2 . . Parts Attached 79 | 7 5 31 6 12 6 12 Power 8 | 1 1 1 1 2 1 1 Engine 7 | 1 1 1 . 2 1 1 Core 1 | . . . 1 . . . Reactor . | . . . . . . . Propulsion 9 | 2 2 3 . . 1 1 Treads . | . . . . . . . Leg 3 | . . 1 . . 1 1 Wheel 6 | 2 2 2 . . . . Hover . | . . . . . . . Flight . | . . . . . . . Utility 28 | 2 . 7 3 7 2 7 Device 17 | 1 . 4 1 4 2 5 Storage 3 | 1 . . 1 . . 1 Processor 2 | . . . 1 1 . . Hackware 1 | . . 1 . . . . Protection 5 | . . 2 . 2 . 1 Artifact . | . . . . . . . Weapon 34 | 2 2 20 2 3 2 3 Energy Gun 2 | 1 . . . . . 1 Energy Cannon 1 | . . 1 . . . . Ballistic Gun 14 | 1 1 10 . 2 . . Ballistic Cannon 1 | . . . . . . 1 Launcher 2 | . . . . . 1 1 Special Weapon 11 | . 1 8 2 . . . Impact Weapon . | . . . . . . . Slashing Weapon 3 | . . 1 . 1 1 . Piercing Weapon . | . . . . . . . Special Melee Weapon . | . . . . . . . Unidentified Prototypes . | . . . . . . . Corrupted Parts 2 | . . . . . . 2 System Corruption 6 | . . . . . . 6 Parts Lost 23 | . 2 5 . 9 1 6 Power 5 | . 1 1 . 2 . 1 Propulsion 2 | . 1 1 . . . . Utility 7 | . . 2 . 3 . 2 Weapon 9 | . . 1 . 4 1 3 Highest Loss Streak 9 | . 1 1 . 9 1 3 To Critical Strikes . | . . . . . . . Average Slot Usage (%) 68 | . 97 72 87 74 7 45 Engine 8 | . 14 11 . . 1 4 Core 1 | . . . 10 3 . . Leg 6 | . . 7 11 5 2 5 Wheel 6 | . 27 8 . . . . Device 10 | . 14 6 21 25 1 13 Storage 3 | . 14 1 5 5 . 4 Hackware 4 | . . 6 11 3 . . Protection 4 | . . 6 . 5 . 4 Ballistic Gun 11 | . 24 16 3 9 . . Special Weapon 5 | . 1 6 11 8 . . Slashing Weapon 1 | . . . 7 1 2 . Peak Build Rating 53 | 8 9 29 33 41 26 53 Average Rating 25 | 4 8 21 32 38 9 38 On Entrance 20 | . 8 9 28 31 38 26 Naked Turns 24 | . . . . . 24 . Heaviest Build 38 | 10 11 29 20 31 13 38 Greatest Support 55 | 26 26 55 55 55 3 50 Greatest Overweight (x) 4 | . . 1 . . 4 . Average Overweight (x) . | . . . . . . . Largest Inventory Capacity 8 | 8 8 8 8 8 5 8 Average Capacity 6 | 7 8 5 6 8 5 7 Most Carried 8 | 6 8 8 8 7 5 5 Average Carried 4 | 2 7 5 5 3 4 1 Final Capacity 8 | 8 8 5 8 8 5 8 Final Carried 8 | 6 8 5 8 3 5 1 Class Distribution -------------------- 79% | Mutant 11% | Scavenger-Mutant 3% | Scavenger-Skirmisher Dominant Class ---------------- Mutant | -10/Materials Mutant | -10/Subcaves Mutant | -8/Recycling Scavenger-Skirmisher | -6/Factory Mutant | -6/Waste Mutant | -6/Factory Resources | -11 -10 -10 -8 -6 -6 -6 ----------- Run | Yrd Mat Sub Rec Fac Was Fac Matter Collected 1410 | 377 110 514 140 135 . 134 Remotely 69 | . . . . 69 . . Salvage Created 2037 | 189 415 560 653 135 . 85 Parts 126 | 14 35 39 24 8 . 6 Haulers Intercepted . | . . . . . . . Recyclers Shooed 3 | 1 . . 2 . . . Parts Field Recycled . | . . . . . . . Retrieved Matter . | . . . . . . . Parts Self-Destructed 4 | . . 4 . . . . Prevented . | . . . . . . . Kills | -11 -10 -10 -8 -6 -6 -6 ------- Run | Yrd Mat Sub Rec Fac Was Fac Combat Hostiles Destroyed 28 | . 11 12 1 2 . 2 Guns 25 | . 11 12 . 2 . . Cannons 1 | . . . 1 . . . AOE 1 | . . . . . . 1 Classes Destroyed 11 | 3 3 2 1 . . 2 Worker 2 | 2 . . . . . . Builder 1 | . 1 . . . . . Tunneler 3 | 3 . . . . . . Recycler 9 | 1 1 . 7 . . . Swarmer 6 | . 6 . . . . . Grunt 5 | . 5 . . . . . Sentry 3 | . . . 1 2 . . Programmer 1 | . . . . . . 1 Heavy 1 | . . . . . . 1 Artisan 1 | . . 1 . . . . Subdweller 12 | . . 12 . . . . Best Kill Streak 7 | 2 4 2 7 2 . 1 Combat Bots Only 3 | . 3 2 1 2 . 1 Max Kills in Single Turn 1 | 1 1 1 1 1 . 1 Gunslinging . | . . . . . . . Exploded 1 | . . . . . . 1 Melee . | . . . . . . . Uniques/NPCs Destroyed . | . . . . . . . Combat | -11 -10 -10 -8 -6 -6 -6 -------- Run | Yrd Mat Sub Rec Fac Was Fac Hostile Shots Fired 303 | . 38 71 9 90 1 94 Missed 97 | . 17 22 3 32 . 23 Damage Taken 4183 | . 184 1194 88 809 86 1822 Core 1102 | . 23 201 17 209 86 566 Absorbed by Shields . | . . . . . . . Ignored by Resistances 110 | . . . . . . 110 Regen/Repaired (Parts) 1077 | . . . . . . 1077 Core Remaining (%) 51 | 100 . . 3 . . . Volleys Fired 225 | 49 43 77 4 9 1 42 Largest 4 | 1 2 2 2 4 1 2 Hottest 185 | 20 100 100 130 185 36 99 Shots Fired 326 | 49 72 127 8 16 1 53 Gun 268 | 49 67 104 . 13 . 35 Cannon 16 | . . . . . . 16 Launcher 3 | . . . . . 1 2 Special 39 | . 5 23 8 3 . . Kinetic 249 | 49 67 104 . 13 . 16 Thermal 39 | . 5 23 8 3 . . Explosive 3 | . . . . . 1 2 Electromagnetic 35 | . . . . . . 35 Robot Hit Streak 28 | 6 5 28 7 21 . 7 Robot Miss Streak 4 | 3 4 2 1 1 . 3 Penetration Max . | . . . . . . . Secondary Targets 2 | . 1 1 . . . . Max Gunslinging Chain 1 | . 1 1 . . . . Shots Hit Robots 224 | 31 34 87 18 15 . 39 Core Hits 96 | 12 22 31 7 6 1 17 Critical Kills . | . . . . . . . Critical Parts Destroyed 1 | 1 . . . . . . Critical Strikes 2 | 1 . 1 . . . . Destroy 2 | 1 . 1 . . . . Melee Attacks 19 | . . 5 12 . 2 . Impact . | . . . . . . . Slashing 19 | . . 5 12 . 2 . Piercing . | . . . . . . . Sneak Attacks 8 | . . . 8 . . . Combat Hostiles . | . . . . . . . Follow-up Attacks . | . . . . . . . Damage Inflicted 3842 | 240 304 1475 834 223 42 724 Guns 2443 | 240 280 1475 . 200 . 248 Cannons 382 | . . . . . . 382 Explosions 112 | . . . . . 42 70 Melee 777 | . . . 777 . . . Ramming 24 | . . . . . . 24 Kinetic 2577 | 240 280 1475 . 200 . 382 Thermal 104 | . 24 . 57 23 . . Explosive 112 | . . . . . 42 70 Electromagnetic 248 | . . . . . . 248 Impact . | . . . . . . . Slashing 777 | . . . 777 . . . Piercing . | . . . . . . . Highest Corruption 14 | . . . . . 5 14 Average Corruption 5 | . . . . . 5 5 Corruption Purged . | . . . . . . . Corruption Blocked . | . . . . . . . Effects 26 | . . . . . 2 24 Message Errors 4 | . . . . . . 4 Matter Fused 7 | . . . . . . 7 Heat Flow Errors 3 | . . . . . . 3 Energy Discharges 2 | . . . . . . 2 Parts Fused 1 | . . . . . . 1 Data Loss (minor) 2 | . . . . . . 2 Data Loss (major) 3 | . . . . . 1 2 Alerts 1 | . . . . . 1 . Weapon Failures 3 | . . . . . . 3 Overload Shots . | . . . . . . . Overflow Damage 322 | . . . 322 . . . Projectiles . | . . . . . . . Explosions . | . . . . . . . Melee 322 | . . . 322 . . . Knockbacks 9 | . . . . . . 9 Impact . | . . . . . . . Kinetic 9 | . . . . . . 9 Secondary . | . . . . . . . Self-Inflicted Damage 76 | . . . . . 36 40 Shots 2 | . . . . . 1 1 Rammed . | . . . . . . . Targets Rammed . | . . . . . . . Kicked . | . . . . . . . Crushed . | . . . . . . . Highest Temperature 340 | . 80 . 233 48 . 340 Average Temperature 103 | . 31 . 119 21 . 138 Received Heat Transfer 762 | . 36 249 9 138 . 330 Siege Activations . | . . . . . . . Robots Corrupted 1 | . . . . . . 1 Combat Hostiles 1 | . . . . . . 1 Parts Fried 3 | . . . . . . 3 Impact Corruptions . | . . . . . . . Robots Melted . | . . . . . . . Combat Hostiles . | . . . . . . . Parts Melted 2 | . . 1 . 1 . . Heat Transferred 575 | . 50 . 395 130 . . Parts Sabotaged . | . . . . . . . Parts Stolen . | . . . . . . . Parts Stripped . | . . . . . . . Power Chain Reactions . | . . . . . . . Alert | -11 -10 -10 -8 -6 -6 -6 ------- Run | Yrd Mat Sub Rec Fac Was Fac Peak Influence 373 | 30 373 . 82 275 108 174 Initial 250 | . 19 . . 250 82 75 Average 100 | 13 238 . 30 248 90 50 Maximum Alert Level 1 | . 1 . . 1 . . Low Security (%) 75 | 100 30 . 100 . 100 100 Level 1 24 | . 69 . . 100 . . Level 2 . | . . . . . . . Level 3 . | . . . . . . . Level 4 . | . . . . . . . Level 5 . | . . . . . . . High Security . | . . . . . . . Max Security . | . . . . . . . Squads Dispatched 5 | . 2 . . . . 3 Investigation . | . . . . . . . Extermination 1 | . . . . . . 1 Reinforcement 4 | . 2 . . . . 2 Assault . | . . . . . . . Garrison . | . . . . . . . Intercept . | . . . . . . . Searches Triggered . | . . . . . . . Construction Impeded . | . . . . . . . Haulers Reinforced . | . . . . . . . Active Scanning Responses . | . . . . . . . Cargo Convoy Interrupts . | . . . . . . . Stealth | -11 -10 -10 -8 -6 -6 -6 --------- Run | Yrd Mat Sub Rec Fac Was Fac Distress Signals 2 | . 1 . . 1 . . Communications Jammed . | . . . . . . . Distress Signals . | . . . . . . . Times Spotted 61 | . 18 19 1 4 5 14 Peak Tracking Total 6 | . 4 6 1 2 5 5 Tactical Retreats 3 | . 1 . . 1 . 1 Traps | -11 -10 -10 -8 -6 -6 -6 ------- Run | Yrd Mat Sub Rec Fac Was Fac Traps Triggered 4 | . . 3 . 1 . . Indirectly . | . . . . . . . Trap Hack Attempts . | . . . . . . . Triggered . | . . . . . . . Disarmed . | . . . . . . . Reprogrammed . | . . . . . . . Reused . | . . . . . . . Traps Extracted . | . . . . . . . Installed . | . . . . . . . Triggered . | . . . . . . . Machines | -11 -10 -10 -8 -6 -6 -6 ---------- Run | Yrd Mat Sub Rec Fac Was Fac Machines Disabled 1 | . . 1 . . . . Max in Single Turn 1 | . . 1 . . . . Machines Repaired . | . . . . . . . Machines Dismantled . | . . . . . . . Machines Sabotaged . | . . . . . . . Overloaded Fab Kills . | . . . . . . . Hacking | -11 -10 -10 -8 -6 -6 -6 --------- Run | Yrd Mat Sub Rec Fac Was Fac Machines Accessed 14 | . 2 4 7 . . 1 Terminals 7 | . 2 . 5 . . . Fabricators . | . . . . . . . Repair Stations 1 | . . . . . . 1 Recycling Units 2 | . . . 2 . . . Scanalyzers . | . . . . . . . Garrison Access . | . . . . . . . Total Hacks 36 | . 3 17 12 . . 4 Successful 31 | . 3 17 7 . . 4 Failed 5 | . . . 5 . . . Catastrophic 2 | . . . 2 . . . Database Lockouts . | . . . . . . . Manual 12 | . 2 . 10 . . . Terminals 13 | . 3 . 10 . . . Fabricators . | . . . . . . . Repair Stations 4 | . . . . . . 4 Recycling Units 2 | . . . 2 . . . Scanalyzers . | . . . . . . . Garrison Access . | . . . . . . . Terminal Hacks 21 | . 1 17 3 . . . Record 14 | . . 14 . . . . Robot Analysis 1 | . 1 . . . . . Open Door 1 | . . 1 . . . . Level Access Points 1 | . . . 1 . . . Branch Access Points 1 | . . . 1 . . . Terminal Index 1 | . . . 1 . . . Derelict Proto ID Bank 1 | . . 1 . . . . Release Object 1 | . . 1 . . . . Fabricator Hacks . | . . . . . . . Repair Station Hacks 4 | . . . . . . 4 Scan Component 2 | . . . . . . 2 Repair 2 | . . . . . . 2 Recycling Unit Hacks 2 | . . . 2 . . . Report Inventory 2 | . . . 2 . . . Scanalyzer . | . . . . . . . Garrison Access Hacks . | . . . . . . . Unauthorized Hacks 4 | . 2 . 2 . . . Terminals 4 | . 2 . 2 . . . Botnet 4 | . 2 . 2 . . . Fabricators . | . . . . . . . Repair Stations . | . . . . . . . Recycling Units . | . . . . . . . Scanalyzers . | . . . . . . . Garrison Access . | . . . . . . . Data Cores Recovered . | . . . . . . . Used . | . . . . . . . Hacking Detections 3 | . 2 . 1 . . . Full Trace Events 5 | . . . 5 . . . Feedback Events . | . . . . . . . Feedback Blocked . | . . . . . . . Robot Schematics Acquired . | . . . . . . . Robots Built . | . . . . . . . Authchips . | . . . . . . . Time . | . . . . . . . Total Robot Build Rating . | . . . . . . . Part Schematics Acquired . | . . . . . . . Parts Built . | . . . . . . . Authchips . | . . . . . . . Time . | . . . . . . . Total Part Build Rating . | . . . . . . . Parts Repaired 2 | . . . . . . 2 Time 164 | . . . . . . 164 Parts Recycled . | . . . . . . . Recycled Matter . | . . . . . . . Retrieved Matter . | . . . . . . . Retrieved Components . | . . . . . . . Parts Scanalyzed . | . . . . . . . Part Schematics Acquired . | . . . . . . . Parts Damaged . | . . . . . . . Bothacking | -11 -10 -10 -8 -6 -6 -6 ------------ Run | Yrd Mat Sub Rec Fac Was Fac Used RIF Installer . | . . . . . . . Robots Hacked . | . . . . . . . Non-combat . | . . . . . . . Combat . | . . . . . . . Robot Hacks Applied . | . . . . . . . Relay Couplers Released . | . . . . . . . Fabnet Peak Effective % . | . . . . . . . Robots Rewired . | . . . . . . . Allies Hacked . | . . . . . . . Hacks Repelled . | . . . . . . . Allies | -11 -10 -10 -8 -6 -6 -6 -------- Run | Yrd Mat Sub Rec Fac Was Fac Total Allies . | . . . . . . . Largest Group . | . . . . . . . Highest-Rated Group . | . . . . . . . Highest-Rated Ally . | . . . . . . . Total Orders . | . . . . . . . Ally Attacks . | . . . . . . . Total Damage . | . . . . . . . Kills . | . . . . . . . Allies Corrupted . | . . . . . . . Allies Melted . | . . . . . . . Intel | -11 -10 -10 -8 -6 -6 -6 ------- Run | Yrd Mat Sub Rec Fac Was Fac Robot Analysis Total 1 | . 1 . . . . . Derelict Logs Recovered 3 | . . 3 . . . . Drone Launches . | . . . . . . . Drone Recoveries . | . . . . . . . Exploration | -11 -10 -10 -8 -6 -6 -6 ------------- Run | Yrd Mat Sub Rec Fac Was Fac Turns Passed 4346 | 183 319 2188 400 297 82 877 Spaces Moved 2292 | 88 200 1391 253 132 94 134 Core 114 | 3 . . . . 94 17 Treads . | . . . . . . . Legs 1416 | . . 914 253 132 . 117 Wheels 762 | 85 200 477 . . . . Hover . | . . . . . . . Flight . | . . . . . . . Fastest Speed 50 | 50 90 90 130 130 50 50 Average Speed 115 | 88 90 118 130 130 65 128 Slowest Speed 250 | 100 100 130 130 130 250 140 Overloaded Moves . | . . . . . . . Propulsion Burnouts . | . . . . . . . Robots Hopped . | . . . . . . . Cave-ins Triggered . | . . . . . . . Exploration Rate (%) 39 | 5 45 89 63 4 68 3 Regions Visited 6 Branch Regions 2 Pre-discovered Areas 1 | . . 1 . . . . Known Exits Taken 2 | . . 1 1 . . . Unknown Exits Taken 2 | 1 1 . . . . . Scrap Searched 3 | . . 3 . . . . Spaces Dug 19 | . . 4 . . 15 . Terrain Destroyed 34 | . . 4 . . 15 15 Melee 6 | . . 4 . . 2 . Projectile . | . . . . . . . AOE 28 | . . . . . 13 15 Terrain Rammed 9 | . . . . . . 9 Walls Destroyed . | . . . . . . . Machines Disabled . | . . . . . . . Actions | -11 -10 -10 -8 -6 -6 -6 --------- Run | Yrd Mat Sub Rec Fac Was Fac Total 3584 | 150 271 1751 295 244 110 763 Wait 887 | . 17 216 5 83 . 566 Move 2287 | 87 199 1390 252 132 93 134 Hop . | . . . . . . . Pick Up 34 | 6 5 7 6 6 3 1 Fast Attach 34 | 7 1 10 3 1 5 7 Attach 23 | . 2 4 . 11 1 5 Detach 3 | . . 1 . . 2 . Swap 22 | . 2 17 3 . . . Drop 30 | 1 2 17 5 2 3 . Fire 225 | 49 43 77 4 9 1 42 Melee 19 | . . 5 12 . 2 . Ram 8 | . . . . . . 8 Kick . | . . . . . . . Crush . | . . . . . . . Escape Stasis . | . . . . . . . Rewire . | . . . . . . . Trap . | . . . . . . . Miscellaneous 12 | . . 7 5 . . . Route ------- -11/Scrapyard -10/Materials (discovered 2 exits: [*Mat] / *Sub) -10/Subcaves (discovered 3 exits: [*Mat x2] / *Rec) -8/Recycling -6/Factory -6/Waste -6/Factory History --------- Turn | Location | Event 27 | -11/Scrapyard | Discovered new exit (range 16) 184 | -11/Scrapyard | Entered Materials 304 | -10/Materials | Build established: Mutant 337 | -10/Materials | Discovered new exit (range 14) 441 | -10/Materials | Discovered new exit (range 16) 503 | -10/Materials | Entered Subcaves 590 | -10/Subcaves | Learned Materials trap positions 689 | -10/Subcaves | Ambushed by angry Subdweller bent on revenge 712 | -10/Subcaves | Discovered new exit (range 15) 900 | -10/Subcaves | Learned Materials terminal intel 977 | -10/Subcaves | Build established: Scavenger-Mutant 1058 | -10/Subcaves | A swath of the cavern ceiling suddenly collapsed 1171 | -10/Subcaves | Visited 4L-MR0's lab 1185 | -10/Subcaves | Found Cargo Legs 1186 | -10/Subcaves | Attached Cargo Legs, gained temporary slots: Utility x2 1358 | -10/Subcaves | Build established: Mutant 1650 | -10/Subcaves | Shifting Twisted Machinery released Sub. Power Source 1780 | -10/Subcaves | A swath of the cavern ceiling suddenly collapsed 1808 | -10/Subcaves | Core integrity fell below 50% 1973 | -10/Subcaves | Released subatomizers from SUBCON Basin 2170 | -10/Subcaves | Core integrity fell below 20% 2213 | -10/Subcaves | Visited Clippyterm 2216 | -10/Subcaves | Identified exit to Recycling 2216 | -10/Subcaves | Learned Factory garrison access intel 2595 | -10/Subcaves | Discovered new exit (range 15) 2600 | -10/Subcaves | Shifting Twisted Machinery released Mak. Axe 2691 | -10/Subcaves | Entered Recycling 3058 | -8/Recycling | Discovered new exit (range 5) 3075 | -8/Recycling | Identified exit to Factory 3091 | -8/Recycling | Entered Factory 3091 | -6/Factory | Evolved 8 slots: Propulsion x2, Utility x4, Weapon x2 3092 | -6/Factory | Loaded intel: 4 garrison access locations 3363 | -6/Factory | Lost 9 parts (2p3u4w) 3388 | -6/Factory | Sucked down chute 3388 | -6/Factory | Entered Waste 3388 | -6/Waste | Released all parts (9) 3402 | -6/Waste | Spotted C-40 Crusher 3403 | -6/Waste | EMP discharged 3412 | -6/Waste | Spotted C-40 Crusher 3414 | -6/Waste | Spotted C-40 Crusher 3420 | -6/Waste | Crushed by Compactor (1 part destroyed) 3428 | -6/Waste | Spotted C-40 Crusher 3445 | -6/Waste | Spotted C-40 Crusher 3460 | -6/Waste | Discovered new exit (range 16) 3470 | -6/Waste | Entered Factory 3565 | -6/Factory | Repaired Broken Lrn. Terrain Scanner 3644 | -6/Factory | Repaired Broken Med. Armored Exoskeleton 4196 | -6/Factory | Core integrity fell below 50% 4277 | -6/Factory | System corruption reached 10% 4278 | -6/Factory | Lost 3 parts (2u1w) 4303 | -6/Factory | Core integrity fell below 20% 4347 | -6/Factory | Core destroyed Last Messages --------------- 04330_ Destabilizing: Core damaged (-34). 04330_ Destabilizing: System interference. 04330_ Lrn. Terrain Scanner temporarily disabled. 04333_ Slammed into Fusion Modulator. 04333_ Lrn. Terrain Scanner broken. 04333_ Destabilizing: Short circuit. 04337_ Slammed into Fusion Modulator. 04337_ Destabilizing: Core damaged (-8). 04337_ Imp. Deuterium Engine broken. 04337_ Destabilizing: Short circuit. 04340_ Slammed into Fusion Modulator. 04340_ Weapon Cycler broken. 04340_ Destabilizing: Short circuit. 04340_ Destabilizing: Core damaged (-25). 04344_ Slammed into Fusion Modulator. 04345_ Broken Imp. Deuterium Engine destroyed. 04347_ System corrupted: Matter fused (-10). 04347_ Slammed into Fusion Modulator. 04347_ Destabilizing: Core damaged (-34). Map ----- +----------------------------------------------------+ | ????????????????????????????????? ?#??? ?? | | ????????????????????????# ? ?????????? #? | | ????????????????????? ??#????? ????????? #" | | ?????????????????? ???????? ??? ??????? ?? | | ????????????????????????#????? ???#???# ? ?#" | | ??????????????#???????? #?? ???? ???#???? ? | | ??????????????#???????????????????????? ? ???? | | ??????????????? ? ????? ? ????? ##??# ? ? ?? | | ?????????????#?????#????#####+#############+###### | | ?????????????????? ????? | | ?????????????? ??? ???? | | ????????????? ? ??????? | | ??????????????? ? ???? | | ???????????????? ?????? | | ???????????#?????????????##???### ############ | | ??????????????#?##?#?#?#??#???### ####???# | | ??????? ?????????#???????????##?# #?#???##"" | | ??????????#?????????#?#??#??????# #??#####"" | | ????????????? ???? ???##########= ##?##??#"Y | | ????????????? ?????????# ### #???#??#"" | | ??????????#? ? ?? ?????# ### ###?#??#"" | | ????#?????? "??????? # """ # #????# | | ??????????# ?"??????? ?# """ # ###?## | | ???????????? ?????"????# """ # ###?###### | | ??????????+????????????# g #m % ##?##?#??# | | ???????????????????"???# @""" ; ###?#?#### | | ??????????# ???? ????? # """ #% ##?###?### | | ????????? ? ???????????#gg""" # ###???##?# | | ?????????????? ????? ?# # ###?###### | | ??????????? ? ??? ????# """ #% ###?#?#??# | | ?? ?????????#??????????# """ ############?#??###? | | ??????????#???????#??#?# """ #????###??#?######?# | | ???????????#??#????#???# #????#?#?#????#??### | | ???????????????#???????########??#????????#??????# | | ??????????????????#????????#?????????????#??????## | | ?????????????##???#??#???#??#???????????#???#?##?# | | ??????????????#?????????#?#???#?#????????????????# | | ?????????????????????#??#?????????#?????????#????? | | ???????????????????????##??##??#???????????????#?? | | ????????????????????#????????????#?##???##????##?? | | ????????????????????????##????????#??????????????? | | ????????????????#???????????????#????#??#????????? | | ?????????????????????????????#??????#???#???#????? | | ??????????????????????#??#????????#?#????????#?#?? | | ?????????????????????????????????#?#???????#?????? | | ???????????????????#????????#??????#?????????????? | | ???????????????????#???????????????????###???????? | | ??????????????????????#?#????#???????????????????? | | ?????????????????????????????????????????????????? | | ?????????????????????????????????????????????????? | +----------------------------------------------------+ Best States ------------- Heat Dissipation 51 Energy Generation 16 Energy Capacity 290 Matter Stores 300 Matter Capacity 300 Sight Range 21 Robot Scan Range 15 Terrain Scan Range 24 Terrain Scan Density 10 ECM Strength 1 Armor Coverage 800 Resistance: TH 20 Evasion (%) 55 Melee Accuracy 5 Offensive Hacking 11 Item Schematics ----------------- None Robot Schematics ------------------ None Fabricated ------------ Nothing Alien Tech Used ----------------- None Achievements -------------- None Challenges ------------ None Game ------ Seed TripodRelayBrace Manual? 0 Play Time 00:53:34 Cumulative 64.8 hours Start 2024.10.27 @ 05:39:50 End 2024.10.29 @ 09:22:01 Sessions 3 Manual Loads 0 Difficulty Rogue Special Mode None Game No. 52 Rogue 52 Adventurer 0 Explorer 0 Win Type - Total 0 Types 0/0/0/0/0/0/0/0/0 Lore% 26 Gallery% 39 Achievement% 39 Wizard Run 0 Options --------- Layout 1 ASCII 0 Keyboard 0 Movement Mouse Keybinds 0 Fullscreen 2 Font 24/X11 Map View 50x35 Zoom Use 0% Tactical HUD 1 Map Filters NONE Filters NONE Steam 1 RUN: 1e154ec2-a6fc-47e8-9560-f88ecece0f3f